[Event "XVII Juros Svente 2020-A"]
[Site "Klaipeda"]
[Date "2020.07.24"]
[Round "5.9"]
[White "Pocius, Vaclovas"]
[Black "Barsciauskas, Gintautas"]
[Result "0-1"]
[ECO "B18"]
[WhiteElo "1714"]
[BlackElo "1575"]
[Annotator "NA RC"]
[PlyCount "92"]
[EventDate "2020.07.20"]
[EventType "tourn"]
[EventCountry "LTU"]
[SourceTitle "playchess.com"]
[Source "ChessBase"]
[SourceQuality "1"]
[TimeControl "40/5400+30:1800+30"]

1. Nc3 {[%emt 0:00:00]} d5 {[%emt 0:00:07]} 2. d4 {[%emt 0:00:06]} c6 {[%emt 0:01:01]} 3. e4 {[%emt 0:00:13]} dxe4 {[%emt 0:00:37]} 4. Nxe4 {[%emt 0:01:53]} Bf5 {[%emt 0:00:11]} 5. Ng3 {[%emt 0:00:10]} Bg6 {[%emt 0:00:12]} 6. h4 {[%emt 0:01:44]} h6 {[%emt 0:00:14]} 7. h5 {[%emt 0:02:10]} Bh7 {[%emt 0:00:10]} 8. Nf3 {[%emt 0:00:23]} e6 {[%emt 0:00:18]} 9. Bd3 {[%emt 0:01:11]} Bxd3 {[%emt 0:00:10]} 10. Qxd3 {[%emt 0:00:02]} Nf6 {[%emt 0:01:44]} 11. Ne4 {[%emt 0:06:13]} Nbd7 {[%emt 0:01:22]} 12. Bf4 {[%emt 0:03:44]} Nxe4 {[%emt 0:00:20]} 13. Qxe4 {[%emt 0:00:03]} Nf6 {[%emt 0:00:44]} 14. Qe2 {[%emt 0:06:16]} Be7 {[%emt 0:03:22]} 15. c3 {[%emt 0:06:16]} O-O {[%emt 0:20:28]} 16. Ne5 {[%emt 0:03:11]} Qd5 {[%emt 0:06:01]} 17. f3 {[%emt 0:12:13]} c5 {[%emt 0:00:43]} 18. g4 {[%emt 0:08:24]} Nh7 {[%emt 0:03:13]} 19. O-O-O {[%emt 0:10:25]} Qxa2 {[%emt 0:01:00]} 20. dxc5 {[%emt 0:00:31]} Qa1+ {[%emt 0:01:58]} 21. Kd2 {[%emt 0:02:00]} Qxb2+ {[%emt 0:03:14]} 22. Ke1 {[%emt 0:00:18]} Qxc3+ {[%emt 0:03:11]} 23. Bd2 {[%emt 0:00:41]} Qb2 {[%emt 0:03:05]} 24. f4 {[%emt 0:01:45]} Rad8 {[%emt 0:10:53]} 25. c6 {[%emt 0:08:19]} bxc6 {[%emt 0:00:17]} 26. g5 {[%emt 0:01:48]} hxg5 {[%emt 0:00:55]} 27. h6 {[%emt 0:01:12]} g6 {[%emt 0:01:32]} 28. Nxg6 {[%emt 0:02:59]} Rfe8 {[%emt 0:06:03]} 29. Ne5 {[%emt 0:03:18]} Bf6 {[%emt 0:04:54]} 30. Nxf7 {[%emt 0:02:56]} Kxf7 {[%emt 0:09:21]} 31. Qh5+ {[%emt 0:00:20]} Kg8 {[%emt 0:00:53]} 32. Rg1 {[%emt 0:03:44]} Kh8 {[%emt 0:01:41]} 33. fxg5 {[%emt 0:02:31]} Qe5+ {[%emt 0:04:32]} 34. Kf1 {[%emt 0:00:31]} Qf5+ {[%emt 0:01:41]} 35. Ke2 {[%emt 0:00:54]} Qd3+ {[%emt 0:01:14]} 36. Ke1 {[%emt 0:00:31]} Qe4+ {[%emt 0:06:10]} 37. Kf1 {[%emt 0:00:15]} Qf5+ {[%emt 0:00:51]} 38. Ke2 {[%emt 0:02:35]} Rg8 {[%emt 0:00:22]} 39. Qf7 {[%emt 0:02:07]} Rdf8 {[%emt 0:02:51]} 40. Qxa7 {[%emt 0:03:35]} Nxg5 {[%emt 0:01:14]} 41. Rdf1 {[%emt 0:31:40]} Qe4+ {[%emt 0:30:38]} 42. Kd1 {[%emt 0:00:12]} Bd4 {[%emt 0:00:37]} 43. Qe7 {[%emt 0:00:00]} Re8 {[%emt 0:00:00]} 44. Qd7 {[%emt 0:00:00]} Bxg1 {[%emt 0:00:00]} 45. Rxg1 {[%emt 0:00:00]} Qb1+ {[%emt 0:00:00]} 46. Bc1 {[%emt 0:00:00]} Rd8 {[%emt 0:00:00]} 0-1

[Event "XVII Juros Svente 2020-A"]
[Site "Klaipeda"]
[Date "2020.07.24"]
[Round "5.10"]
[White "Piksrys, Rutenis"]
[Black "Aleidzans, Vadims"]
[Result "1/2-1/2"]
[ECO "A05"]
[WhiteElo "1532"]
[BlackElo "1346"]
[Annotator "NA RC"]
[PlyCount "64"]
[EventDate "2020.07.20"]
[EventType "tourn"]
[EventCountry "LTU"]
[SourceTitle "playchess.com"]
[Source "ChessBase"]
[SourceQuality "1"]
[TimeControl "40/5400+30:1800+30"]

1. Nf3 {[%emt 0:00:00]} Nf6 {[%emt 0:00:00]} 2. g3 {[%emt 0:00:00]} g6 {[%emt 0:00:02]} 3. Bg2 {[%emt 0:00:00]} Bg7 {[%emt 0:00:14]} 4. O-O {[%emt 0:00:06]} O-O {[%emt 0:00:14]} 5. d3 {[%emt 0:00:08]} d6 {[%emt 0:00:54]} 6. e4 {[%emt 0:00:24]} c5 {[%emt 0:02:25]} 7. a4 {[%emt 0:01:30]} Nc6 {[%emt 0:00:28]} 8. c3 {[%emt 0:00:37]} e6 {[%emt 0:00:20]} 9. Na3 {[%emt 0:00:54]} Qd7 {[%emt 0:01:40]} 10. Nc4 {[%emt 0:03:45]} Qc7 {[%emt 0:01:24]} 11. Bf4 {[%emt 0:01:12]} e5 {[%emt 0:01:21]} 12. Bg5 {[%emt 0:00:52]} Be6 {[%emt 0:00:39]} 13. Nfd2 {[%emt 0:02:08]} h6 {[%emt 0:01:26]} 14. Be3 {[%emt 0:00:43]} b6 {[%emt 0:00:34]} 15. h3 {[%emt 0:00:57]} d5 {[%emt 0:00:34]} 16. exd5 {[%emt 0:01:46]} Nxd5 {[%emt 0:05:27]} 17. Qe2 {[%emt 0:05:04]} Rad8 {[%emt 0:00:56]} 18. Rac1 {[%emt 0:01:07]} f5 {[%emt 0:01:35]} 19. f4 {[%emt 0:02:25]} exf4 {[%emt 0:03:17]} 20. Bxd5 {[%emt 0:02:52]} Bxd5 {[%emt 0:02:13]} 21. Bxf4 {[%emt 0:00:26]} Qd7 {[%emt 0:00:25]} 22. Rcd1 {[%emt 0:00:39]} Rfe8 {[%emt 0:01:57]} 23. Qf2 {[%emt 0:00:42]} Ne5 {[%emt 0:01:47]} 24. Nxe5 {[%emt 0:01:08]} Bxe5 {[%emt 0:00:15]} 25. Bxe5 {[%emt 0:01:20]} Rxe5 {[%emt 0:00:13]} 26. d4 {[%emt 0:03:49]} cxd4 {[%emt 0:01:54]} 27. Qxd4 {[%emt 0:00:33]} Re2 {[%emt 0:02:51]} 28. Rf2 {[%emt 0:01:04]} Rxf2 {[%emt 0:03:07]} 29. Kxf2 {[%emt 0:00:11]} f4 {[%emt 0:01:45]} 30. g4 {[%emt 0:03:48]} Qe7 {[%emt 0:01:25]} 31. Nf3 {[%emt 0:01:40]} Kh7 {[%emt 0:05:51]} 32. c4 {[%emt 0:01:10]} Bxf3 {[%emt 0:04:27]} 1/2-1/2

[Event "XVII Juros Svente 2020-A"]
[Site "Klaipeda"]
[Date "2020.07.24"]
[Round "5.12"]
[White "Scekaciov, Rostislav"]
[Black "Ullrich, Karol"]
[Result "1/2-1/2"]
[ECO "A06"]
[WhiteElo "1458"]
[BlackElo "1404"]
[Annotator "NA RC"]
[PlyCount "101"]
[EventDate "2020.07.20"]
[EventType "tourn"]
[EventCountry "LTU"]
[SourceTitle "playchess.com"]
[Source "ChessBase"]
[SourceQuality "1"]
[TimeControl "40/5400+30:1800+30"]

1. Nf3 {[%emt 0:06:09]} d5 {[%emt 0:00:00]} 2. g3 {[%emt 0:00:49]} Nf6 {[%emt 0:00:00]} 3. Bg2 {[%emt 0:00:21]} Bg4 {[%emt 0:00:58]} 4. O-O {[%emt 0:00:35]} e6 {[%emt 0:00:14]} 5. d3 {[%emt 0:01:40]} Bd6 {[%emt 0:01:06]} 6. Nbd2 {[%emt 0:00:28]} O-O {[%emt 0:00:25]} 7. Re1 {[%emt 0:00:20]} Re8 {[%emt 0:02:12]} 8. e4 {[%emt 0:00:16]} dxe4 {[%emt 0:00:51]} 9. dxe4 {[%emt 0:00:19]} Nc6 {[%emt 0:00:17]} 10. h3 {[%emt 0:00:43]} Bxf3 {[%emt 0:00:29]} 11. Nxf3 {[%emt 0:00:03]} e5 {[%emt 0:00:31]} 12. c3 {[%emt 0:01:07]} h6 {[%emt 0:02:32]} 13. Qc2 {[%emt 0:02:38]} Qe7 {[%emt 0:00:37]} 14. Nh4 {[%emt 0:01:41]} Rad8 {[%emt 0:04:05]} 15. Nf5 {[%emt 0:01:33]} Qe6 {[%emt 0:01:00]} 16. Be3 {[%emt 0:01:45]} Ne7 {[%emt 0:07:28]} 17. Nxd6 {[%emt 0:00:36]} Rxd6 {[%emt 0:01:29]} 18. Red1 {[%emt 0:00:38]} Red8 {[%emt 0:01:27]} 19. b3 {[%emt 0:00:32]} Rxd1+ {[%emt 0:04:08]} 20. Rxd1 {[%emt 0:00:07]} Rxd1+ {[%emt 0:05:00]} 21. Qxd1 {[%emt 0:00:07]} Nc6 {[%emt 0:00:26]} 22. Qd3 {[%emt 0:01:54]} Qe7 {[%emt 0:00:46]} 23. Qb5 {[%emt 0:02:07]} Nd8 {[%emt 0:04:13]} 24. Bc5 {[%emt 0:01:55]} Qe6 {[%emt 0:01:01]} 25. Be3 {[%emt 0:02:28]} Qd6 {[%emt 0:00:42]} 26. Qc5 {[%emt 0:03:29]} Qxc5 {[%emt 0:09:18]} 27. Bxc5 Nc6 {[%emt 0:00:23]} 28. Be3 {[%emt 0:01:36]} Nd7 {[%emt 0:01:46]} 29. Bf1 {[%emt 0:00:28]} a6 {[%emt 0:00:27]} 30. Kg2 {[%emt 0:01:05]} Kf8 {[%emt 0:00:50]} 31. f4 {[%emt 0:00:10]} Ke7 {[%emt 0:00:30]} 32. Kf3 {[%emt 0:00:11]} Kf6 {[%emt 0:01:19]} 33. f5 {[%emt 0:01:57]} h5 {[%emt 0:01:44]} 34. g4 {[%emt 0:00:23]} hxg4+ {[%emt 0:00:32]} 35. hxg4 {[%emt 0:00:03]} g6 {[%emt 0:00:25]} 36. g5+ {[%emt 0:00:26]} Ke7 {[%emt 0:01:03]} 37. f6+ {[%emt 0:00:27]} Kd6 {[%emt 0:01:12]} 38. a4 {[%emt 0:01:46]} Nd8 {[%emt 0:00:31]} 39. b4 {[%emt 0:01:58]} c6 {[%emt 0:02:10]} 40. Bc4 {[%emt 0:02:34]} Kc7 {[%emt 0:05:02]} 41. Bc5 {[%emt 0:30:54]} Nxc5 {[%emt 0:30:13]} 42. bxc5 {[%emt 0:00:19]} a5 {[%emt 0:03:03]} 43. Ke3 {[%emt 0:01:26]} Kd7 {[%emt 0:00:51]} 44. Kd3 {[%emt 0:01:25]} Ne6 {[%emt 0:00:24]} 45. Bxe6+ {[%emt 0:00:04]} Kxe6 {[%emt 0:00:07]} 46. c4 {[%emt 0:00:07]} Kd7 {[%emt 0:00:20]} 47. Kc3 {[%emt 0:00:09]} Kc7 {[%emt 0:00:08]} 48. Kb3 {[%emt 0:00:32]} b6 {[%emt 0:01:14]} 49. cxb6+ {[%emt 0:00:03]} Kxb6 {[%emt 0:00:09]} 50. Kc2 {[%emt 0:00:06]} c5 {[%emt 0:00:11]} 51. Kd3 1/2-1/2

[Event "XVII Juros Svente 2020-A"]
[Site "Klaipeda"]
[Date "2020.07.25"]
[Round "6.10"]
[White "Ullrich, Karol"]
[Black "Pocius, Vaclovas"]
[Result "1/2-1/2"]
[ECO "B06"]
[WhiteElo "1404"]
[BlackElo "1714"]
[Annotator "NA RC"]
[PlyCount "61"]
[EventDate "2020.07.20"]
[EventType "tourn"]
[EventCountry "LTU"]
[SourceTitle "playchess.com"]
[Source "ChessBase"]
[SourceQuality "1"]
[TimeControl "40/5400+30:1800+30"]

1. e4 {[%emt 0:00:00]} g6 {[%emt 0:00:27]} 2. d4 {[%emt 0:00:07]} c6 {[%emt 0:00:24]} 3. Bd3 {[%emt 0:02:55]} d5 {[%emt 0:04:01]} 4. e5 {[%emt 0:00:17]} h5 {[%emt 0:00:39]} 5. Nf3 {[%emt 0:02:00]} Nh6 {[%emt 0:01:08]} 6. c4 {[%emt 0:13:43]} Bf5 {[%emt 0:07:31]} 7. cxd5 {[%emt 0:02:31]} Qxd5 {[%emt 0:03:12]} 8. Nc3 {[%emt 0:00:47]} Qd7 {[%emt 0:04:26]} 9. O-O {[%emt 0:03:05]} Bxd3 {[%emt 0:03:51]} 10. Qxd3 {[%emt 0:00:23]} Na6 {[%emt 0:00:19]} 11. a3 {[%emt 0:03:53]} Nc7 {[%emt 0:03:00]} 12. Re1 {[%emt 0:03:26]} Nf5 {[%emt 0:03:59]} 13. Be3 {[%emt 0:12:03]} Bg7 {[%emt 0:04:22]} 14. b4 {[%emt 0:04:35]} O-O {[%emt 0:09:13]} 15. a4 {[%emt 0:06:44]} Rfd8 {[%emt 0:03:12]} 16. Red1 {[%emt 0:05:51]} Nd5 {[%emt 0:04:52]} 17. Nxd5 {[%emt 0:02:29]} Qxd5 {[%emt 0:00:11]} 18. Rac1 {[%emt 0:01:47]} b6 {[%emt 0:07:08]} 19. Qc2 {[%emt 0:06:31]} Rac8 {[%emt 0:08:51]} 20. b5 {[%emt 0:00:15]} cxb5 {[%emt 0:00:27]} 21. Qxc8 {[%emt 0:00:08]} Rxc8 {[%emt 0:00:23]} 22. Rxc8+ {[%emt 0:00:02]} Bf8 {[%emt 0:00:58]} 23. axb5 {[%emt 0:00:52]} Qb3 {[%emt 0:01:46]} 24. Ra1 {[%emt 0:04:13]} Kg7 {[%emt 0:05:40]} 25. Rxa7 {[%emt 0:00:38]} Nxe3 {[%emt 0:00:54]} 26. fxe3 {[%emt 0:00:20]} Qxe3+ {[%emt 0:00:11]} 27. Kf1 {[%emt 0:01:14]} g5 {[%emt 0:04:15]} 28. Raa8 {[%emt 0:05:08]} g4 {[%emt 0:02:48]} 29. Nh4 {[%emt 0:01:16]} Qd3+ {[%emt 0:00:41]} 30. Ke1 {[%emt 0:00:17]} Qe3+ {[%emt 0:00:21]} 31. Kf1 {[%emt 0:00:13]} 1/2-1/2

[Event "XVII Juros Svente 2020-A"]
[Site "Klaipeda"]
[Date "2020.07.25"]
[Round "6.11"]
[White "Bazilius, Augustinas"]
[Black "Scekaciov, Rostislav"]
[Result "1-0"]
[ECO "D79"]
[WhiteElo "1632"]
[BlackElo "1458"]
[Annotator "NA RC"]
[PlyCount "87"]
[EventDate "2020.07.20"]
[EventType "tourn"]
[EventCountry "LTU"]
[SourceTitle "playchess.com"]
[Source "ChessBase"]
[SourceQuality "1"]
[TimeControl "40/5400+30:1800+30"]

1. Nf3 {[%emt 0:00:00]} Nf6 {[%emt 0:08:19]} 2. g3 {[%emt 0:00:01]} g6 {[%emt 0:00:17]} 3. Bg2 {[%emt 0:00:10]} Bg7 {[%emt 0:00:10]} 4. d4 {[%emt 0:03:09]} O-O {[%emt 0:00:15]} 5. O-O {[%emt 0:01:32]} d5 {[%emt 0:00:19]} 6. c4 {[%emt 0:00:39]} c6 {[%emt 0:00:16]} 7. cxd5 {[%emt 0:00:50]} cxd5 {[%emt 0:00:10]} 8. Ne5 {[%emt 0:00:40]} Nbd7 {[%emt 0:01:17]} 9. Nc3 {[%emt 0:07:01]} e6 {[%emt 0:03:11]} 10. Nxd7 {[%emt 0:03:57]} Nxd7 {[%emt 0:02:16]} 11. b3 {[%emt 0:02:18]} Re8 {[%emt 0:01:36]} 12. Ba3 {[%emt 0:01:52]} Bf8 {[%emt 0:00:23]} 13. Bxf8 {[%emt 0:00:24]} Kxf8 {[%emt 0:00:44]} 14. Qd2 {[%emt 0:14:46]} Kg7 {[%emt 0:00:13]} 15. Rac1 {[%emt 0:11:40]} Nb6 {[%emt 0:02:29]} 16. Nb5 {[%emt 0:01:57]} Re7 {[%emt 0:06:38]} 17. Qa5 {[%emt 0:03:45]} a6 {[%emt 0:05:16]} 18. Nc7 {[%emt 0:01:31]} Rxc7 {[%emt 0:00:34]} 19. Qxb6 {[%emt 0:00:20]} Rd7 {[%emt 0:00:35]} 20. Qxd8 {[%emt 0:00:02]} Rxd8 {[%emt 0:00:02]} 21. Rc7 {[%emt 0:00:02]} Rb8 {[%emt 0:00:43]} 22. Rfc1 {[%emt 0:00:36]} Bd7 {[%emt 0:00:31]} 23. e4 {[%emt 0:06:41]} Bc6 {[%emt 0:03:45]} 24. exd5 {[%emt 0:02:24]} exd5 {[%emt 0:01:22]} 25. Re1 {[%emt 0:01:33]} Re8 {[%emt 0:00:23]} 26. Rce7 {[%emt 0:00:06]} Rxe7 {[%emt 0:00:37]} 27. Rxe7 {[%emt 0:00:00]} Re8 {[%emt 0:00:01]} 28. Rxe8 {[%emt 0:00:32]} Bxe8 {[%emt 0:00:05]} 29. Bxd5 {[%emt 0:00:06]} b6 {[%emt 0:00:06]} 30. Kg2 {[%emt 0:00:20]} f5 {[%emt 0:00:24]} 31. Kf3 {[%emt 0:03:15]} Kf6 {[%emt 0:00:47]} 32. Ke3 {[%emt 0:00:52]} Ke7 {[%emt 0:00:26]} 33. Bg8 {[%emt 0:01:42]} h6 {[%emt 0:00:41]} 34. d5 {[%emt 0:02:51]} Kd6 {[%emt 0:01:39]} 35. Kd4 {[%emt 0:00:03]} Bd7 {[%emt 0:02:27]} 36. f4 {[%emt 0:04:09]} Be8 {[%emt 0:00:41]} 37. h4 {[%emt 0:00:41]} a5 {[%emt 0:05:09]} 38. a3 {[%emt 0:00:32]} b5 {[%emt 0:00:34]} 39. b4 {[%emt 0:00:10]} axb4 {[%emt 0:00:11]} 40. axb4 {[%emt 0:00:09]} g5 {[%emt 0:01:44]} 41. hxg5 {[%emt 0:30:17]} hxg5 {[%emt 0:30:02]} 42. fxg5 {[%emt 0:00:17]} Bg6 {[%emt 0:00:09]} 43. Be6 {[%emt 0:00:30]} Bh7 {[%emt 0:00:18]} 44. Bf7 {[%emt 0:00:42]} 1-0

[Event "XVII Juros Svente 2020-A"]
[Site "Klaipeda"]
[Date "2020.07.25"]
[Round "6.12"]
[White "Januseviciute, Donata"]
[Black "Piksrys, Rutenis"]
[Result "0-1"]
[ECO "A40"]
[WhiteElo "1520"]
[BlackElo "1532"]
[Annotator "NA RC"]
[PlyCount "80"]
[EventDate "2020.07.20"]
[EventType "tourn"]
[EventCountry "LTU"]
[SourceTitle "playchess.com"]
[Source "ChessBase"]
[SourceQuality "1"]
[TimeControl "40/5400+30:1800+30"]

1. d4 {[%emt 0:00:00]} g6 {[%emt 0:00:00]} 2. c4 {[%emt 0:00:00]} Bg7 {[%emt 0:00:00]} 3. e4 {[%emt 0:00:00]} d6 {[%emt 0:00:00]} 4. Nc3 {[%emt 0:01:08]} Nf6 {[%emt 0:00:07]} 5. Bd3 {[%emt 0:01:05]} O-O {[%emt 0:00:11]} 6. Nge2 {[%emt 0:01:00]} e5 {[%emt 0:00:28]} 7. d5 {[%emt 0:00:20]} c6 {[%emt 0:00:10]} 8. f3 {[%emt 0:01:07]} cxd5 {[%emt 0:00:38]} 9. cxd5 {[%emt 0:01:08]} Nbd7 {[%emt 0:00:57]} 10. Bg5 {[%emt 0:00:21]} h6 {[%emt 0:00:41]} 11. Bh4 {[%emt 0:00:14]} Nc5 {[%emt 0:00:42]} 12. Bc2 {[%emt 0:05:48]} b5 {[%emt 0:00:30]} 13. b4 {[%emt 0:01:00]} Na6 {[%emt 0:00:51]} 14. a3 {[%emt 0:00:26]} Nc7 {[%emt 0:00:14]} 15. Bd3 {[%emt 0:01:32]} Bd7 {[%emt 0:01:43]} 16. O-O {[%emt 0:01:36]} a6 {[%emt 0:00:33]} 17. Qd2 {[%emt 0:01:11]} g5 {[%emt 0:00:52]} 18. Bf2 {[%emt 0:00:35]} Nh5 {[%emt 0:00:50]} 19. g4 {[%emt 0:12:06]} Nf4 {[%emt 0:00:27]} 20. Ng3 {[%emt 0:00:19]} Nh3+ {[%emt 0:00:34]} 21. Kg2 {[%emt 0:00:11]} Nxf2 {[%emt 0:00:10]} 22. Qxf2 {[%emt 0:00:52]} Re8 {[%emt 0:01:19]} 23. Rac1 {[%emt 0:00:22]} Rc8 {[%emt 0:00:19]} 24. Rc2 {[%emt 0:00:48]} Na8 {[%emt 0:00:35]} 25. a4 {[%emt 0:03:26]} Qb6 {[%emt 0:01:39]} 26. axb5 {[%emt 0:01:57]} axb5 {[%emt 0:00:36]} 27. Ra1 {[%emt 0:03:19]} Rc7 {[%emt 0:02:52]} 28. Ra5 {[%emt 0:07:26]} Qxf2+ {[%emt 0:02:09]} 29. Kxf2 {[%emt 0:00:04]} Rec8 {[%emt 0:00:20]} 30. Nge2 {[%emt 0:00:19]} Nb6 {[%emt 0:02:36]} 31. Bxb5 {[%emt 0:01:11]} Bxb5 {[%emt 0:00:33]} 32. Rxb5 {[%emt 0:00:05]} Na4 {[%emt 0:00:15]} 33. Nxa4 {[%emt 0:07:09]} Rxc2 {[%emt 0:00:18]} 34. Rb6 {[%emt 0:00:38]} Ra2 {[%emt 0:00:43]} 35. Ra6 {[%emt 0:00:29]} Rcc2 {[%emt 0:00:13]} 36. Nc5 {[%emt 0:04:45]} Rxe2+ {[%emt 0:00:31]} 37. Kf1 {[%emt 0:00:06]} dxc5 {[%emt 0:02:12]} 38. Rxa2 {[%emt 0:00:54]} Rxa2 {[%emt 0:00:08]} 39. bxc5 {[%emt 0:00:33]} Bf8 {[%emt 0:00:22]} 40. d6 {[%emt 0:00:30]} Bxd6 {[%emt 0:00:55]} 0-1

[Event "XVII Juros Svente 2020-A"]
[Site "Klaipeda"]
[Date "2020.07.26"]
[Round "7.8"]
[White "Zirnovas, Martynas"]
[Black "Piksrys, Rutenis"]
[Result "1-0"]
[ECO "B08"]
[WhiteElo "1801"]
[BlackElo "1532"]
[Annotator "NA RC"]
[PlyCount "67"]
[EventDate "2020.07.20"]
[EventType "tourn"]
[EventCountry "LTU"]
[SourceTitle "playchess.com"]
[Source "ChessBase"]
[SourceQuality "1"]
[TimeControl "40/5400+30:1800+30"]

{[%evp 8,62,36,16,27,20,34,38,33,30,43,34,35,25,107,93,98,93,114,97,106,105,95,96,102,101,134,130,166,143,140,136,141,146,140,138,266,309,264,295,265,293,277,200,343,348,338,359,460,316,317,349,284,375,465,544,578]} 1. e4 {[%emt 0:00:00]} g6 {[%emt 0:00:00]} 2. d4 {[%emt 0:00:00]} Bg7 {[%emt 0:00:00]} 3. Nf3 {[%emt 0:00:09]} d6 {[%emt 0:00:00]} 4. Nc3 {[%emt 0:00:13]} Nf6 {[%emt 0:00:00]} 5. h3 {[%emt 0:00:43]} O-O {[%emt 0:00:09]} 6. Be3 {[%emt 0:00:19]} Nbd7 {[%emt 0:00:29]} 7. Be2 {[%emt 0:00:48]} c6 {[%emt 0:00:22]} 8. a4 {[%emt 0:00:13]} a5 {[%emt 0:00:36] B08: Pirc Defence: Classical System.} 9. Nd2 {[%emt 0:02:55]} e5 {[%emt 0:00:28]} 10. dxe5 {[%emt 0:00:50]} dxe5 {[%emt 0:00:08]} (10... Nxe5 $11 {remains equal.} 11. f4 Ned7) 11. Nc4 {[%emt 0:00:50]} Ne8 {[%emt 0:00:54] [#]} 12. Bc5 $146 {[%emt 0:03:09]} ({Predecessor:} 12. O-O f5 13. exf5 gxf5 14. Nd6 Nxd6 15. Qxd6 f4 16. Bc4+ Kh8 17. Bc1 f3 18. g4 {1-0 (28) Monti,T-Epelboin,M (2028) ICC INT 2009}) 12... Qg5 {[%emt 0:00:38]} 13. Bxf8 {[%emt 0:01:24]} Nxf8 {[%emt 0:00:29]} 14. Nb6 {[%emt 0:04:53]} Rb8 {[%emt 0:00:11]} 15. Nxc8 {[%emt 0:01:03]} Rxc8 {[%emt 0:00:07]} 16. O-O {[%emt 0:01:29]} Ne6 {[%emt 0:00:28]} 17. Bc4 {[%emt 0:03:54]} Rd8 {[%emt 0:00:44]} 18. Qg4 {[%emt 0:01:15]} Qxg4 {[%emt 0:01:56]} 19. hxg4 {[%emt 0:04:26]} Nd4 {[%emt 0:00:10]} 20. Rad1 {[%emt 0:06:33]} Nd6 {[%emt 0:00:54]} 21. Bd3 {[%emt 0:00:57]} b5 {[%emt 0:00:17]} (21... Bf8 $16 22. g3 Be7) 22. axb5 {[%emt 0:00:48]} cxb5 {[%emt 0:00:06] [#]} 23. Nxb5 $1 {[%emt 0:01:58]} N6xb5 {[%emt 0:01:01]} 24. Bxb5 {[%emt 0:00:28]} Rb8 {[%emt 0:00:18]} 25. c4 {[%emt 0:02:00]} f5 {[%emt 0:00:21]} (25... Bf8 $142 26. Rd3 Bb4) 26. exf5 {[%emt 0:01:47]} gxf5 {[%emt 0:00:07]} 27. gxf5 {[%emt 0:01:20]} Nxf5 {[%emt 0:00:28]} 28. Bd7 {[%emt 0:01:23]} Nd4 {[%emt 0:00:17]} 29. c5 {[%emt 0:00:33]} Rxb2 {[%emt 0:01:01]} 30. Ra1 {[%emt 0:05:53]} Rb4 {[%emt 0:01:04]} 31. Rxa5 {[%emt 0:01:22]} Ne2+ $18 {[%emt 0:00:26]} 32. Kh2 {[%emt 0:00:15]} Rh4+ {[%emt 0:00:20]} 33. Bh3 {[%emt 0:00:17]} Rc4 {[%emt 0:00:49]} 34. Be6+ {[%emt 0:00:15]} 1-0

[Event "XVII Juros Svente 2020-A"]
[Site "Klaipeda"]
[Date "2020.07.26"]
[Round "7.9"]
[White "Barsciauskas, Gintautas"]
[Black "Bazilius, Augustinas"]
[Result "1/2-1/2"]
[ECO "A57"]
[WhiteElo "1575"]
[BlackElo "1632"]
[Annotator "NA RC"]
[PlyCount "79"]
[EventDate "2020.07.20"]
[EventType "tourn"]
[EventCountry "LTU"]
[SourceTitle "playchess.com"]
[Source "ChessBase"]
[SourceQuality "1"]
[TimeControl "40/5400+30:1800+30"]

1. d4 {[%emt 0:00:00]} Nf6 {[%emt 0:00:00]} 2. c4 {[%emt 0:00:00]} c5 {[%emt 0:00:00]} 3. d5 {[%emt 0:00:11]} b5 {[%emt 0:00:00]} 4. cxb5 {[%emt 0:01:43]} a6 {[%emt 0:00:00]} 5. Nc3 {[%emt 0:00:30]} axb5 {[%emt 0:00:18]} 6. Nxb5 {[%emt 0:00:37]} Ba6 {[%emt 0:00:15]} 7. Nc3 {[%emt 0:00:20]} d6 {[%emt 0:00:20]} 8. f3 {[%emt 0:02:51]} g6 {[%emt 0:01:05]} 9. g4 {[%emt 0:05:52]} Nbd7 {[%emt 0:01:59]} 10. Bg2 {[%emt 0:02:13]} Bg7 {[%emt 0:00:54]} 11. Kf2 {[%emt 0:01:40]} Ne5 {[%emt 0:02:47]} 12. h4 {[%emt 0:01:20]} Nfxg4+ {[%emt 0:10:27]} 13. fxg4 {[%emt 0:00:12]} Nxg4+ {[%emt 0:00:08]} 14. Ke1 {[%emt 0:04:24]} Bd4 {[%emt 0:01:44]} 15. e3 {[%emt 0:25:59]} Nxe3 {[%emt 0:00:20]} 16. Bxe3 {[%emt 0:00:10]} Bxe3 {[%emt 0:00:05]} 17. Nf3 {[%emt 0:00:57]} Qc8 {[%emt 0:06:00]} 18. Qa4+ {[%emt 0:01:16]} Kf8 {[%emt 0:00:24]} 19. Qe4 {[%emt 0:00:20]} Bh6 {[%emt 0:01:06]} 20. Ng5 {[%emt 0:01:39]} Rb8 {[%emt 0:02:16]} 21. Bh3 {[%emt 0:11:32]} Qd8 {[%emt 0:04:01]} 22. Rh2 {[%emt 0:00:49]} Bxg5 {[%emt 0:00:52]} 23. hxg5 {[%emt 0:00:48]} Rb4 {[%emt 0:02:08]} 24. Qf3 {[%emt 0:01:38]} Kg7 {[%emt 0:00:58]} 25. Rd1 {[%emt 0:03:08]} Rf8 {[%emt 0:06:27]} 26. Bg4 {[%emt 0:06:17]} f5 {[%emt 0:01:55]} 27. Qh3 {[%emt 0:02:42]} Rh8 {[%emt 0:00:07]} 28. Qh6+ {[%emt 0:03:54]} Kf7 {[%emt 0:00:00]} 29. Bxf5 {[%emt 0:02:27]} gxf5 {[%emt 0:03:05]} 30. Qe6+ {[%emt 0:01:48]} Ke8 {[%emt 0:02:30]} 31. g6 {[%emt 0:00:44]} Qd7 {[%emt 0:02:24]} 32. Qf7+ {[%emt 0:00:59]} Kd8 {[%emt 0:00:06]} 33. g7 {[%emt 0:00:49]} Qe8 {[%emt 0:00:22]} 34. gxh8=Q {[%emt 0:01:10]} Qxh8 {[%emt 0:00:13]} 35. Qxf5 {[%emt 0:02:31]} Rxb2 {[%emt 0:00:28]} 36. Rc2 Rxc2 37. Qxc2 Qe5+ 38. Kf2 Qf4+ 39. Ke1 Qf5 40. Qxf5 1/2-1/2